bitfinex/quotes_SOLUSD_20250217
["timestamp","ask_amount","ask_price","bid_price","bid_amount"]
[1739776952062,16.23205945,182.45,182.42,6.3071]
[1739776952289,16.23205945,182.43,182.42,6.3071]
[1739776952551,32.4641189,182.43,182.37,0.03]
[1739776952846,16.23205945,182.38,182.37,0.03]
[1739776953055,17.05422374,182.38,182.36,0.03]
[1739776953262,16.23205945,182.37,182.36,0.03]
[1739776953670,16.23205945,182.37,182.32,8.56245174]
[1739776953671,32.4641189,182.37,182.32,8.56245174]
[1739776953851,1.0,182.39,182.27,6.3071]
[1739776953852,16.23205945,182.33,182.27,6.3071]
[1739776954059,16.23205945,182.28,182.27,6.3071]
[1739776954264,16.23205945,182.28,182.26,8.56245174]
[1739776954440,0.82216429,182.33,182.26,8.56245174]
[1739776954441,16.23205945,182.27,182.26,8.56245174]
[1739776954643,26.06103775,182.27,182.26,8.56245174]
[1739776956949,26.06103775,182.27,182.23,13.41184853]
[1739776957146,26.06103775,182.24,182.21,6.3371]
[1739776957355,26.06103775,182.22,182.21,6.3371]
[1739776958163,26.06103775,182.22,182.21,0.03]
[1739776960645,29.90253775,182.22,182.21,0.03]
[1739776960845,26.06103775,182.22,182.21,0.03]
[1739776962854,29.90253775,182.22,182.21,0.03]
[1739776963367,26.06103775,182.22,182.21,0.03]
[1739776963974,26.06103775,182.23,182.21,0.03]
[1739776964360,26.06103775,182.22,182.21,0.03]
[1739776967295,26.06103775,182.23,182.21,0.03]
[1739776967486,26.06103775,182.24,182.21,13.44184853]
[1739776967784,26.06103775,182.26,182.21,0.03]
[1739776967988,26.06103775,182.24,182.21,20.03]
[1739776968151,26.06103775,182.23,182.21,0.03]
[1739776968351,26.06103775,182.23,182.21,13.44184853]
[1739776968783,26.06103775,182.24,182.21,13.44184853]
[1739776969354,26.06103775,182.24,182.21,0.03]
[1739776969552,26.06103775,182.23,182.21,17.28354853]
[1739776969751,26.06103775,182.23,182.22,13.41184853]
[1739776969989,26.06103775,182.25,182.22,13.41184853]
[1739776970290,26.06103775,182.25,182.21,17.28354853]
[1739776970453,26.06103775,182.24,182.22,13.41184853]
[1739776970856,26.06103775,182.25,182.22,13.41184853]
[1739776971059,26.06103775,182.25,182.24,13.41184853]
[1739776971470,113.02103775,182.34,182.24,13.41184853]
[1739776971674,26.06103775,182.29,182.24,13.41184853]
[1739776972081,15.9713,182.38,182.24,13.41184853]
[1739776972082,3.8384,182.37,182.26,13.41184853]
[1739776972262,26.06103775,182.32,182.26,39.47288628]
[1739776972457,26.06103775,182.29,182.26,13.41184853]
[1739776972782,26.06103775,182.27,182.25,6.2002]
[1739776973083,26.06103775,182.29,182.26,13.41184853]
[1739776973285,26.06103775,182.3,182.26,13.41184853]
[1739776973661,26.06103775,182.29,182.26,13.41184853]
[1739776973882,26.06103775,182.3,182.26,13.41184853]
[1739776974379,26.06103775,182.3,182.28,13.41184853]
[1739776975681,26.06103775,182.29,182.28,13.41184853]
[1739776976567,16.28011461,182.29,182.27,3.8404]
[1739776976774,16.28011461,182.29,182.28,13.41184853]
[1739776976979,16.28011461,182.3,182.28,13.41184853]
[1739776977383,16.28011461,182.29,182.28,13.41184853]
[1739776977687,16.28011461,182.29,182.25,10.0408]
[1739776978064,16.28011461,182.29,182.26,13.41184853]
[1739776978774,16.28011461,182.29,182.27,3.8404]
[1739776979095,4.46,182.28,182.27,17.25224853]
[1739776979396,16.28011461,182.29,182.27,17.25224853]
[1739776979689,16.28011461,182.29,182.26,3.8406]
[1739776980481,16.28011461,182.27,182.26,13.41184853]
[1739776981393,16.28011461,182.28,182.26,13.41184853]
[1739776981802,16.28011461,182.29,182.27,3.8404]
[1739776982097,4.46,182.28,182.27,3.8404]
[1739776983863,20.74011461,182.28,182.25,3.8406]
[1739776984067,16.28011461,182.26,182.21,6.6103]
[1739776984303,16.28011461,182.24,182.21,6.6103]
[1739776984669,16.28011461,182.24,182.22,13.41184853]
[1739776985070,16.28011461,182.27,182.22,13.41184853]
[1739776985389,16.28011461,182.28,182.22,13.41184853]
[1739776985777,16.28011461,182.28,182.22,17.25314853]
[1739776986098,16.28011461,182.34,182.22,17.25314853]
[1739776986099,16.28011461,182.3,182.26,13.41184853]
[1739776986280,16.28011461,182.29,182.26,13.41184853]
[1739776986480,16.28011461,182.29,182.26,20.0]
[1739776986669,4.44,182.28,182.26,20.0]
[1739776987070,16.28011461,182.3,182.27,13.41184853]
[1739776987373,16.28011461,182.3,182.27,17.25224853]
[1739776988292,0.82216429,182.38,182.25,20.0]
[1739776988293,16.28011461,182.29,182.25,20.0]
[1739776988497,16.28011461,182.26,182.21,6.6103]
[1739776988700,16.28011461,182.24,182.21,10.452]
[1739776989220,16.28011461,182.24,182.22,13.41184853]
[1739776989830,16.28011461,182.24,182.22,17.25324853]
[1739776989972,16.28011461,182.25,182.22,17.25324853]
[1739776990172,16.28011461,182.25,182.22,13.41184853]
[1739776990608,16.28011461,182.24,182.21,6.6103]
[1739776990909,16.28011461,182.24,182.21,10.4519]
[1739776991112,16.28011461,182.25,182.21,10.4519]
[1739776991776,16.28011461,182.26,182.22,13.41184853]
[1739776991980,16.28011461,182.27,182.22,13.41184853]
[1739776992594,16.28011461,182.28,182.22,13.41184853]
[1739776993275,16.28011461,182.28,182.22,29.69196314]
[1739776993481,16.28011461,182.29,182.25,3.8408]
[1739776993689,16.28011461,182.29,182.26,13.41184853]
[1739776994291,16.28011461,182.29,182.24,3.841]
[1739776994922,16.28011461,182.28,182.24,3.841]
[1739776995110,16.28011461,182.29,182.24,3.841]
[1739776997703,16.28011461,182.32,182.26,13.44184853]
[1739776997915,16.28011461,182.32,182.29,13.41184853]
[1739776998127,0.063,182.36,182.29,13.41184853]
[1739776998293,16.28011461,182.35,182.29,13.41184853]
[1739776998708,16.28011461,182.34,182.29,13.41184853]
[1739776999030,16.28011461,182.35,182.29,13.41184853]
[1739776999897,16.28011461,182.34,182.3,3.8398]
[1739777000111,4.4,182.33,182.3,3.8398]
[1739777000317,4.4,182.33,182.28,3.84]
[1739777000935,20.68011461,182.33,182.29,13.41184853]
[1739777001144,16.28011461,182.33,182.29,13.41184853]
[1739777001549,16.28011461,182.33,182.28,13.41184853]
[1739777001718,16.28011461,182.29,182.26,0.03]
[1739777002115,16.28011461,182.29,182.27,13.41184853]
[1739777002736,16.28011461,182.3,182.27,13.41184853]
[1739777002938,16.28011461,182.28,182.26,0.03]
[1739777003115,16.28011461,182.27,182.26,0.03]
[1739777008023,20.12051461,182.27,182.26,0.03]
[1739777008415,16.28011461,182.27,182.26,0.03]
[1739777009930,20.12051461,182.27,182.26,0.03]
[1739777010325,16.28011461,182.27,182.26,0.03]
[1739777013038,20.12051461,182.27,182.26,0.03]
[1739777015560,2.39256429,182.3,182.26,0.03]
[1739777015761,2.39256429,182.3,182.27,13.41184853]
[1739777015762,16.28011461,182.3,182.27,13.41184853]
[1739777016261,16.28011461,182.28,182.26,13.44184853]
[1739777016444,16.28011461,182.27,182.26,13.44184853]
[1739777016639,16.28011461,182.27,182.26,0.03]
[1739777018146,16.28011461,182.34,182.26,0.03]
[1739777018147,16.28011461,182.29,182.26,0.03]
[1739777019366,16.28011461,182.28,182.26,0.03]
[1739777019751,16.28011461,182.28,182.26,13.44184853]
[1739777020850,16.28011461,182.27,182.26,0.03]
[1739777021765,16.28011461,182.3,182.26,0.03]
[1739777023948,16.28011461,182.3,182.27,13.41184853]
[1739777024259,16.28011461,182.28,182.26,3.8706]
[1739777025638,1.5896,182.35,182.27,3.8404]
[1739777025839,16.28011461,182.31,182.27,3.8404]
[1739777026064,16.28011461,182.29,182.27,3.8404]
[1739777026863,16.28011461,182.29,182.26,0.03]
[1739777026864,16.28011461,182.3,182.26,0.03]
[1739777028262,0.82216429,182.33,182.27,1.6416]
[1739777028572,12.89681673,182.36,182.33,20.0]
[1739777029071,12.89681673,182.36,182.33,23.8389]
[1739777030583,12.89681673,182.36,182.34,17.25054853]
[1739777032167,0.063,182.36,182.34,17.25054853]
[1739777033667,0.063,182.36,182.34,3.8387]
[1739777033668,16.28011461,182.35,182.34,3.8387]
[1739777033980,16.28011461,182.35,182.31,13.41184853]
[1739777034274,16.34311461,182.36,182.31,13.41184853]
[1739777034959,16.28011461,182.32,182.3,3.8398]
[1739777035272,20.74011461,182.31,182.27,3.8404]
[1739777035466,16.28011461,182.29,182.27,3.8404]
[1739777036085,16.28011461,182.29,182.24,17.28284853]
[1739777036253,16.28011461,182.3,182.24,26.88554853]
[1739777036457,16.28011461,182.3,182.24,43.16566314]
[1739777036874,16.28011461,182.32,182.25,16.28011461]
[1739777037072,0.063,182.36,182.27,13.41184853]
[1739777037369,16.28011461,182.33,182.27,13.41184853]
[1739777037568,16.28011461,182.33,182.28,13.41184853]
[1739777037953,16.28011461,182.33,182.29,3.84]
[1739777038258,4.46,182.32,182.29,3.84]
[1739777038556,16.28011461,182.34,182.29,3.84]
[1739777038956,16.28011461,182.33,182.29,3.84]
[1739777039361,16.28011461,182.32,182.29,3.84]
[1739777039654,4.46,182.31,182.29,3.84]
[1739777039975,20.74011461,182.31,182.27,9.601]
[1739777040273,0.063,182.36,182.27,9.601]
[1739777040274,0.063,182.36,182.34,13.41184853]
[1739777040449,0.063,182.36,182.33,13.41184853]
[1739777040655,16.28011461,182.34,182.27,32.09811461]
[1739777040853,16.28011461,182.32,182.27,15.818]
[1739777041055,16.28011461,182.35,182.31,33.41184853]
[1739777041257,16.34311461,182.36,182.31,33.41184853]
[1739777041473,16.28011461,182.34,182.28,16.28011461]
[1739777041781,4.48,182.33,182.3,20.0]
[1739777041981,16.28011461,182.34,182.3,20.0]
[1739777042358,16.28011461,182.34,182.31,3.8396]
[1739777043269,4.48,182.33,182.31,3.8396]
[1739777043999,16.28011461,182.32,182.29,17.25164853]
[1739777044155,16.28011461,182.34,182.29,17.25164853]
[1739777045160,16.28011461,182.35,182.29,17.25164853]
[1739777045482,0.063,182.36,182.32,13.41184853]
[1739777045889,0.063,182.36,182.31,13.44184853]
[1739777046092,16.34311461,182.36,182.33,13.41184853]
[1739777046266,16.34311461,182.36,182.31,0.03]
[1739777046693,16.28011461,182.33,182.31,0.03]
[1739777046993,16.28011461,182.32,182.31,0.03]
[1739777050077,17.1022789,182.32,182.31,0.03]
[1739777050597,20.9416789,182.32,182.31,0.03]
[1739777050771,17.1022789,182.32,182.31,0.03]
[1739777051367,16.28011461,182.32,182.31,0.03]
[1739777058597,20.11951461,182.32,182.31,0.03]
[1739777061513,21.11951461,182.32,182.26,0.03]
[1739777061716,16.28011461,182.27,182.26,0.03]
[1739777063425,17.1022789,182.27,182.26,0.03]
[1739777063911,20.9426789,182.27,182.26,0.03]
[1739777064119,17.1022789,182.27,182.26,0.03]
[1739777065312,38.22279351,182.27,182.26,0.03]
[1739777065507,38.22279351,182.27,182.24,0.03]
[1739777065508,20.0,182.25,182.24,0.03]
[1739777065810,53.38239351,182.25,182.24,0.03]
[1739777066119,33.38239351,182.25,182.24,0.03]
[1739777067697,37.22319351,182.25,182.24,0.03]
[1739777069821,0.82216429,182.25,182.24,0.03]
[1739777070016,16.28011461,182.25,182.24,0.03]
[1739777079735,16.28011461,182.26,182.24,0.03]
[1739777080698,10.42265229,182.26,182.24,0.03]
[1739777081502,10.48565229,182.26,182.24,0.03]
[1739777082234,10.42265229,182.25,182.24,0.03]
[1739777082807,10.48565229,182.26,182.24,0.03]
[1739777084355,0.063,182.26,182.24,0.03]
[1739777085858,0.063,182.26,182.25,19.52264853]
[1739777088246,0.063,182.26,182.25,23.36344853]
[1739777089976,0.063,182.26,182.25,9.9516]
[1739777093867,0.063,182.26,182.25,9.9816]
[1739777094866,0.063,182.26,182.25,33.81610082]
[1739777095370,0.063,182.26,182.25,23.39344853]
[1739777098849,0.063,182.26,182.25,33.81610082]
[1739777099049,0.063,182.26,182.25,23.39344853]
[1739777108655,0.063,182.26,182.25,17.28264853]
[1739777111964,0.063,182.26,182.25,27.70530082]
[1739777112266,0.063,182.26,182.25,17.28264853]
[1739777112664,0.063,182.26,182.25,27.70530082]
[1739777113582,0.063,182.36,182.28,20.0]
[1739777113789,0.063,182.36,182.26,13.41184853]
[1739777113790,0.063,182.36,182.32,13.41184853]
[1739777113990,0.063,182.36,182.31,13.41184853]
[1739777114689,0.063,182.36,182.34,13.41184853]
[1739777115263,0.063,182.36,182.34,10.42265229]
[1739777115462,0.063,182.36,182.35,13.41184853]
[1739777115995,0.063,182.36,182.35,17.25054853]
[1739777116867,0.063,182.36,182.35,27.67320082]
[1739777117088,0.063,182.36,182.35,17.25054853]
[1739777117693,0.063,182.36,182.35,27.67320082]
[1739777117885,0.063,182.36,182.35,17.25054853]
[1739777120896,0.063,182.36,182.28,2.13232528]
[1739777120897,10.48565229,182.36,182.31,3.8396]
[1739777121067,10.42265229,182.33,182.28,3.8402]
[1739777121381,10.42265229,182.31,182.28,3.8402]
[1739777121897,10.42265229,182.31,182.27,3.8404]
[1739777122305,10.42265229,182.31,182.28,13.41184853]
[1739777122800,10.42265229,182.34,182.28,23.83450082]
[1739777123095,0.063,182.36,182.3,23.83450082]
[1739777123300,0.063,182.36,182.32,23.83450082]
[1739777123674,0.063,182.36,182.34,13.41184853]
[1739777123885,0.063,182.36,182.35,3.8387]
[1739777124399,0.063,182.36,182.35,17.25054853]
[1739777129399,0.063,182.36,182.35,13.41184853]
[1739777130596,0.063,182.36,182.35,17.25054853]
[1739777134505,0.063,182.36,182.35,27.67320082]
[1739777135701,0.063,182.36,182.35,17.25054853]
[1739777136191,0.063,182.36,182.35,27.67320082]
[1739777137302,0.063,182.36,182.35,17.25054853]
[1739777138781,0.063,182.36,182.31,9.5986]
[1739777139098,0.063,182.36,182.32,14.26205229]
[1739777139305,0.063,182.36,182.33,13.41184853]
[1739777139810,0.063,182.36,182.33,23.83450082]
[1739777140318,0.063,182.36,182.35,13.41184853]
[1739777140686,0.063,182.36,182.35,17.25054853]
[1739777142698,0.063,182.36,182.35,27.67320082]
[1739777143503,0.063,182.36,182.35,17.25054853]
[1739777146605,0.063,182.36,182.35,3.8387]
[1739777148327,0.063,182.36,182.35,13.41184853]
[1739777148709,10.40337598,182.38,182.35,13.41184853]
[1739777148909,10.42265229,182.39,182.35,13.41184853]
[1739777149303,10.42265229,182.38,182.35,13.41184853]
[1739777150518,10.42265229,182.38,182.33,17.25094853]
[1739777152126,10.42265229,182.37,182.33,17.25094853]
[1739777152909,20.0,182.27,182.25,0.03]
[1739777153112,10.42265229,182.26,182.25,0.03]
[1739777153429,52.11326145,182.26,182.25,0.03]
[1739777153629,10.42265229,182.26,182.25,0.03]
[1739777154330,10.42265229,182.27,182.25,0.03]
[1739777154710,16.28342045,182.27,182.25,0.03]
[1739777154933,16.28342045,182.28,182.25,0.03]
[1739777155431,16.28342045,182.27,182.25,0.03]
[1739777155816,16.28342045,182.26,182.25,0.03]
[1739777156217,32.5668409,182.26,182.25,0.03]
[1739777156406,2.45586429,182.3,182.25,0.03]
[1739777156607,16.28342045,182.26,182.25,0.03]
[1739777157629,36.4074409,182.26,182.25,0.03]
[1739777158843,37.22960519,182.26,182.25,0.03]
[1739777159252,33.38900519,182.26,182.25,0.03]
[1739777159758,37.22960519,182.26,182.25,0.03]
[1739777160243,33.38900519,182.26,182.25,0.03]
[1739777160646,32.5668409,182.26,182.25,0.03]
[1739777160821,17.10558474,182.26,182.25,0.03]
[1739777161461,16.28342045,182.26,182.25,0.03]
[1739777166034,32.5668409,182.26,182.25,0.03]
[1739777166235,33.38900519,182.26,182.25,0.03]
[1739777166933,16.28342045,182.26,182.25,0.03]
[1739777167630,32.5668409,182.26,182.25,0.03]
[1739777167854,33.38900519,182.26,182.25,0.03]
[1739777168368,32.5668409,182.26,182.25,0.03]
[1739777168564,16.28342045,182.26,182.25,0.03]
[1739777171138,32.5668409,182.26,182.25,0.03]
[1739777171557,33.38900519,182.26,182.25,0.03]
[1739777171864,37.22960519,182.26,182.24,0.03]
[1739777172041,32.5668409,182.25,182.24,0.03]
[1739777173167,36.4076409,182.25,182.24,0.03]
[1739777173363,16.28342045,182.22,182.21,0.03]
[1739777175490,16.28342045,182.23,182.21,0.03]
[1739777175655,16.28342045,182.24,182.21,0.03]
[1739777176479,16.28342045,182.25,182.21,0.03]
[1739777176667,16.28342045,182.24,182.21,0.03]
[1739777177060,17.28342045,182.34,182.22,22.62382045]
[1739777177061,0.82216429,182.32,182.22,22.62382045]
[1739777177383,16.28342045,182.29,182.23,13.41184853]
[1739777177610,16.28342045,182.26,182.23,13.41184853]
[1739777178583,16.28342045,182.26,182.24,3.841]
[1739777178971,16.28342045,182.25,182.22,10.1817]
[1739777179278,16.28342045,182.23,182.21,3.8717]
[1739777179579,16.28342045,182.22,182.21,0.03]
[1739777182291,16.28342045,182.23,182.21,0.03]
[1739777183499,3.8402,182.29,182.21,0.03]
[1739777183500,16.28342045,182.22,182.21,0.03]
[1739777186168,16.28342045,182.22,182.21,0.03]
[1739777187789,16.28342045,182.23,182.21,0.03]
[1739777188671,16.28342045,182.25,182.21,0.03]
[1739777188997,16.28342045,182.24,182.21,13.44184853]
[1739777189374,16.28342045,182.23,182.21,13.44184853]
[1739777190297,16.28342045,182.23,182.21,0.03]
[1739777191814,0.063,182.26,182.21,13.44184853]
[1739777192108,0.063,182.26,182.21,29.72526898]
[1739777192276,16.34642045,182.26,182.21,13.44184853]
[1739777192473,0.063,182.26,182.21,13.44184853]
[1739777192696,0.063,182.26,182.23,13.41184853]
[1739777193000,0.063,182.26,182.25,13.41184853]
[1739777194597,0.063,182.26,182.22,13.41184853]
[1739777194789,0.063,182.26,182.22,17.25334853]
[1739777197404,16.34642045,182.26,182.22,17.25334853]
[1739777202009,0.063,182.26,182.25,29.69526898]
[1739777202184,16.28342045,182.35,182.26,13.41184853]
[1739777202515,16.28342045,182.35,182.29,13.41184853]
[1739777203293,16.28342045,182.35,182.31,13.41184853]
[1739777203903,16.28342045,182.34,182.31,13.41184853]
[1739777205616,16.28342045,182.32,182.29,3.84]
[1739777205790,16.28342045,182.31,182.29,23.84]
[1739777205991,16.28342045,182.31,182.3,13.41184853]
[1739777207022,16.28342045,182.31,182.3,17.25164853]
[1739777207633,16.28342045,182.32,182.3,17.25164853]
[1739777209024,16.28342045,182.32,182.3,13.41184853]
[1739777209803,16.28342045,182.32,182.3,17.25164853]
[1739777209998,16.28342045,182.32,182.3,13.41184853]
[1739777210334,4.72366429,182.36,182.24,7.6807]
[1739777210335,16.28342045,182.31,182.24,7.6807]
[1739777210520,16.28342045,182.29,182.28,33.41184853]
[1739777211126,16.28342045,182.29,182.25,3.8408]
[1739777211738,16.28342045,182.29,182.27,20.0]
[1739777212405,16.28342045,182.3,182.27,23.8403]
[1739777216525,16.28342045,182.29,182.27,23.8403]
[1739777217413,16.28342045,182.28,182.25,0.03]
[1739777217607,16.28342045,182.27,182.25,3.8708]
[1739777219237,16.28342045,182.27,182.25,0.03]
[1739777220545,16.28342045,182.26,182.25,0.03]
[1739777221511,21.66012045,182.26,182.25,0.03]
[1739777222655,37.9435409,182.26,182.25,0.03]
[1739777222943,38.76570519,182.26,182.25,0.03]
[1739777223346,22.48228474,182.26,182.25,0.03]
[1739777223936,21.66012045,182.26,182.25,0.03]
[1739777224143,22.48228474,182.26,182.25,0.03]
[1739777224708,17.81952045,182.26,182.25,0.03]
[1739777224914,16.28342045,182.26,182.25,0.03]
[1739777225130,16.28342045,182.28,182.25,0.03]
[1739777225323,16.28342045,182.29,182.25,0.03]
[1739777226153,16.28342045,182.26,182.25,0.03]
[1739777226739,36.4074409,182.26,182.25,0.03]
[1739777226943,37.22960519,182.26,182.25,0.03]
[1739777228754,20.94618474,182.26,182.25,0.03]
[1739777229458,37.22960519,182.26,182.25,0.03]
[1739777233065,20.94618474,182.26,182.25,0.03]
[1739777233234,17.10558474,182.26,182.25,0.03]
[1739777233637,20.94618474,182.26,182.25,0.03]
[1739777234166,17.10558474,182.26,182.25,0.03]
[1739777234538,11.24992858,182.26,182.25,0.03]
[1739777235041,15.09052858,182.26,182.25,0.03]
[1739777235644,11.24992858,182.26,182.25,0.03]
[1739777236337,15.09052858,182.26,182.25,0.03]
[1739777237961,15.15352858,182.26,182.25,0.03]
[1739777238359,56.86458574,182.26,182.25,0.03]
[1739777241479,57.86458574,182.26,182.21,0.03]
[1739777241774,10.42776429,182.22,182.21,0.03]
[1739777242278,11.24992858,182.22,182.21,0.03]
[1739777242664,12.24992858,182.22,182.21,0.03]
[1739777243162,20.0,182.19,182.12,0.03]
[1739777243363,10.42776429,182.13,182.12,0.03]
[1739777243659,10.42776429,182.14,182.12,0.03]
[1739777248055,10.42776429,182.13,182.12,0.03]
[1739777253582,2.0,182.19,182.12,0.03]
[1739777253583,10.42776429,182.15,182.12,0.03]
[1739777253782,10.42776429,182.16,182.12,0.03]
[1739777253966,5.5065,182.2,182.12,0.03]
[1739777254171,10.42776429,182.18,182.12,10.45776429]
[1739777254575,10.42776429,182.2,182.14,13.41184853]
[1739777254756,10.42776429,182.2,182.15,6.0689]
[1739777255184,10.42776429,182.18,182.15,6.0689]
[1739777255370,10.42776429,182.19,182.15,9.9118]
[1739777255573,4.66346429,182.23,182.15,9.9118]
[1739777255885,10.42776429,182.19,182.15,9.9118]
[1739777256391,10.42776429,182.2,182.15,9.9118]
[1739777257768,10.42776429,182.21,182.15,9.9118]
[1739777258295,10.42776429,182.22,182.16,13.41184853]
[1739777258495,10.42776429,182.22,182.16,23.83961282]
[1739777259113,10.42776429,182.21,182.16,13.41184853]
[1739777259289,41.71105716,182.25,182.15,9.9118]
[1739777259290,10.42776429,182.19,182.15,9.9118]
[1739777259711,10.42776429,182.19,182.15,6.0689]
[1739777259896,10.42776429,182.17,182.15,6.0689]
[1739777260331,10.42776429,182.16,182.12,0.03]
[1739777260508,10.42776429,182.14,182.12,0.03]
[1739777261095,10.42776429,182.15,182.12,0.03]
[1739777261407,10.42776429,182.15,182.12,3.8735]
[1739777261605,10.42776429,182.15,182.12,0.03]
[1739777261994,10.4014831,182.15,182.12,0.03]
[1739777262190,3.8421,182.2,182.12,13.44184853]
[1739777262191,10.42776429,182.16,182.12,13.44184853]
[1739777263402,10.42776429,182.16,182.13,3.8434]
[1739777264725,10.42776429,182.15,182.13,3.8434]
[1739777264924,10.42776429,182.14,182.12,0.03]
[1739777265514,10.42776429,182.15,182.12,13.44184853]
[1739777265698,10.42776429,182.18,182.12,13.44184853]
[1739777266109,0.063,182.21,182.15,10.42776429]
[1739777266323,10.49076429,182.21,182.16,13.41184853]
[1739777266502,10.49076429,182.21,182.14,10.42776429]
[1739777267122,10.42776429,182.2,182.14,10.42776429]
[1739777267837,10.42776429,182.2,182.16,13.41184853]
[1739777268622,16.2957287,182.2,182.16,13.41184853]
[1739777268823,16.2957287,182.2,182.14,17.25494853]
[1739777269210,16.2957287,182.17,182.14,17.25494853]
[1739777269533,16.2957287,182.15,182.12,0.03]
[1739777270023,16.2957287,182.15,182.12,13.44184853]
[1739777270230,16.2957287,182.16,182.12,13.44184853]
[1739777271030,16.2957287,182.16,182.12,17.28544853]
[1739777271570,16.2957287,182.15,182.12,13.44184853]
[1739777271768,16.2957287,182.13,182.12,0.03]
[1739777274638,16.2957287,182.14,182.12,0.03]
[1739777274845,16.2957287,182.15,182.12,0.03]
[1739777275167,16.2957287,182.14,182.12,0.03]
[1739777277137,16.2957287,182.13,182.12,0.03]
[1739777290569,10.43952097,182.13,182.12,0.03]
[1739777291674,0.063,182.15,182.12,0.03]
[1739777293169,0.063,182.15,182.13,13.41184853]
[1739777293884,0.063,182.2,182.17,20.0]
[1739777294099,0.063,182.2,182.19,23.8513695]
[1739777294299,18.0626647,182.3,182.23,20.0]
[1739777294507,18.0626647,182.3,182.25,10.43952097]
[1739777294713,9.6367903,182.3,182.25,23.8513695]
[1739777295083,9.6367903,182.3,182.25,27.6921695]
[1739777295279,9.6367903,182.3,182.25,17.25264853]
[1739777295600,10.43952097,182.3,182.25,17.25264853]
[1739777295803,8.4258744,182.31,182.25,27.6921695]
[1739777296509,18.86539537,182.31,182.25,27.6921695]
[1739777296710,8.4258744,182.31,182.25,33.52932451]
[1739777298209,16.33967598,182.32,182.25,33.52932451]
[1739777299703,0.063,182.32,182.25,33.52932451]
[1739777303995,0.063,182.32,182.26,13.41184853]
[1739777304198,0.063,182.32,182.29,13.41184853]
[1739777304715,0.063,182.32,182.27,16.27667598]
[1739777305592,0.063,182.32,182.28,17.25204853]
[1739777314542,0.063,182.32,182.28,33.52872451]
[1739777315036,0.063,182.32,182.28,17.25204853]
[1739777316955,16.33967598,182.32,182.28,17.25204853]
[1739777318830,10.4790068,182.32,182.28,17.25204853]
[1739777319027,10.4160068,182.31,182.28,13.41184853]
[1739777319240,10.4160068,182.3,182.25,3.8408]
[1739777320758,10.4160068,182.3,182.28,13.41184853]
[1739777320949,10.4160068,182.3,182.28,17.25204853]
[1739777321253,10.4160068,182.31,182.28,17.25204853]
[1739777323156,0.063,182.32,182.28,17.25204853]
[1739777323832,10.4790068,182.32,182.28,17.25204853]
[1739777324238,0.063,182.32,182.28,17.25204853]
[1739777324833,0.063,182.32,182.28,27.66805533]
[1739777325536,0.063,182.32,182.3,10.4160068]
[1739777325766,0.063,182.32,182.29,13.41184853]
[1739777325767,0.063,182.32,182.31,43.82785533]
[1739777327029,0.063,182.32,182.31,47.66745533]
[1739777327568,0.063,182.36,182.31,47.66745533]
[1739777327569,0.063,182.36,182.32,13.41184853]
[1739777327769,0.063,182.36,182.35,43.82785533]
[1739777328060,0.063,182.36,182.35,13.41184853]
[1739777328265,10.4790068,182.36,182.31,3.8396]
[1739777328434,10.4160068,182.34,182.31,3.8396]
[1739777328834,10.4160068,182.35,182.32,13.41184853]
[1739777329140,10.4160068,182.35,182.32,17.25114853]
[1739777331360,10.4160068,182.34,182.3,17.25144853]
[1739777331662,10.4160068,182.33,182.3,17.25144853]
[1739777333863,10.4160068,182.34,182.3,17.25144853]
[1739777334233,10.4790068,182.36,182.3,17.25144853]
[1739777334439,0.063,182.36,182.32,13.41184853]
[1739777334635,0.063,182.36,182.34,13.41184853]
[1739777334863,0.063,182.36,182.34,10.4160068]
[1739777335046,0.063,182.36,182.35,23.82785533]
[1739777335246,0.063,182.36,182.35,27.66655533]
[1739777339167,0.063,182.36,182.35,34.07025533]
[1739777342949,0.0001,182.36,182.35,117.39245894]
[1739777343172,0.0001,182.36,182.35,116.57025533]
[1739777343465,0.063,182.38,182.36,13.41184853]
[1739777343669,0.0001,182.38,182.37,26.64996285]